fUSD/lending_fUSD_20251123
["ID","MTS","AMOUNT","RATE_DAILY","PERIOD"]
[394738618,1763922641178,-188.0,0.00034132,2]
[394738619,1763922641187,-188.0,0.00034132,2]
[394738620,1763922641197,-153.0,0.00034134,2]
[394738621,1763922641210,-153.0,0.00034134,2]
[394738622,1763922641219,-153.0,0.00034134,2]
[394738623,1763922641229,-153.0,0.00034134,2]
[394738624,1763922641239,-153.0,0.00034145,2]
[394738625,1763922641249,-153.0,0.00034145,2]
[394738626,1763922641259,-153.0,0.00034145,2]
[394738627,1763922641268,-153.0,0.00034145,2]
[394738628,1763922641278,-153.0,0.00034145,2]
[394738629,1763922641290,-4612.16888228,0.0003416,2]
[394738630,1763922641301,-6553.97854478,0.00034171,2]
[394738631,1763922641311,-4612.16888228,0.00034256,2]
[394738632,1763922641321,-6553.97854478,0.00034266,2]
[394738633,1763922641332,-4612.16888228,0.00034266,2]
[394738634,1763922641342,-3950.05,0.00034276,38]
[394738635,1763922641352,-252.477,0.00034276,38]
[394738636,1763922641362,-1712.20190078,0.0003449,2]
[394738637,1763922641371,-160.55159976,0.00034759,15]
[394738638,1763922641380,-9932.50325129,0.000349,2]
[394738639,1763922641389,-402.85222887,0.00035,2]
[394738640,1763922641400,-7259.81220287,0.00035,30]
[394738641,1763922641410,-257.819996,0.00035,30]
[394738642,1763922641419,-500.0,0.00035,120]
[394738643,1763922641429,-880.73,0.00035331,5]
[394738644,1763922641770,-553.03389997,0.00035527,2]
[394738645,1763922641780,-6269.47719753,0.00035616,120]
[394738646,1763922641790,-1475.57,0.00035616,2]
[394738647,1763922641800,-221.19,0.000357,14]
[394738648,1763922641809,-441.34612025,0.00035722,2]
[394738649,1763922641818,-872.36,0.0003585,5]
[394738650,1763922641828,-4419.89394565,0.000359,2]
[394738651,1763922641837,-4612.16888228,0.00035998,2]
[394738652,1763922641847,-1036.94,0.00036,2]
[394738653,1763922641856,-212.72268745,0.00036,2]
[394738654,1763922641865,-10737.97382393,0.00036,2]
[394738655,1763922641874,-6553.97854478,0.00036008,2]
[394738656,1763922641883,-4612.16888228,0.00036018,2]
[394738657,1763922641892,-9932.50325129,0.00036567,2]
[394738658,1763922641903,-880.93,0.00036605,5]
[394738659,1763922641913,-1036.94,0.0003672,2]
[394738660,1763922641922,-4612.16888228,0.0003678,3]
[394738661,1763922641931,-6553.97854478,0.0003679,3]
[394738662,1763922641940,-1592.08054665,0.000368,2]
[394738663,1763922641950,-1932.39330038,0.000368,2]
[394738664,1763922641960,-258.98096565,0.00036832,5]
[394738665,1763922641970,-4612.16888228,0.00036889,3]
[394738666,1763922641979,-6553.97854478,0.000369,3]
[394738667,1763922641989,-9224.33776456,0.000369,3]
[394738668,1763922641998,-13969.05075542,0.0003691,2]
[394738669,1763922642008,-9224.33776456,0.0003698,3]
[394738670,1763922642017,-285.47253644,0.0003698,2]
[394738671,1763922642027,-19661.9356343,0.0003699,3]
[394738672,1763922642037,-18448.6755291,0.0003699,3]
[394738673,1763922642048,-150.55,0.0003699,2]
[394738674,1763922642057,-42036.17328675,0.00037,5]
[394738675,1763922642067,-163.73600225,0.00037,2]
[394738676,1763922642076,-479.01,0.00037178,2]
[394738677,1763922642086,-870.43,0.00037251,5]
[394738678,1763922642095,-866.9,0.00037322,5]
[394738679,1763922642105,-4612.16888228,0.00037348,3]
[394738680,1763922642114,-6553.97854478,0.00037357,3]
[394738681,1763922642124,-4612.16888228,0.00037357,3]
[394738682,1763922642133,-6553.97854478,0.00037368,3]
[394738683,1763922642143,-13836.5066468,0.00037368,3]
[394738684,1763922642155,-6553.97854478,0.00037377,3]
[394738685,1763922642164,-1601.0,0.00037377,2]
[394738686,1763922642174,-822.0,0.00037377,2]
[394738687,1763922642183,-1256.0,0.00037377,2]
[394738688,1763922642193,-659.0,0.00037377,2]
[394738689,1763922642205,-908.0,0.00037377,2]
[394738690,1763922642216,-1192.0,0.00037377,2]
[394738691,1763922642226,-576.0,0.00037377,2]
[394738692,1763922642236,-298.28,0.00037377,2]
[394738693,1763922642248,-301.72,0.00037377,2]
[394738694,1763922642258,-1320.0,0.00037377,2]
[394738695,1763922642272,-4612.16888228,0.00037387,3]
[394738696,1763922642283,-6333.71,0.00037397,2]
[394738697,1763922642294,-1355.31192065,0.000375,2]
[394738698,1763922642379,-390.1117159,0.000375,2]
[394738699,1763922642418,-254.57636345,0.000375,2]
[394738700,1763922642428,-500.0,0.000375,5]
[394738701,1763922642438,-500.0,0.000375,5]
[394738702,1763922642448,-500.0,0.000375,5]
[394738703,1763922642459,-200.0,0.000375,5]
[394738704,1763922642470,-500.0,0.000375,5]
[394738705,1763922642481,-500.0,0.000375,5]
[394738706,1763922642491,-500.0,0.000375,5]
[394738707,1763922642502,-500.0,0.000375,5]
[394738708,1763922642512,-500.0,0.000375,5]
[394738709,1763922642522,-500.0,0.000375,5]
[394738710,1763922642531,-500.0,0.000375,5]
[394738711,1763922642541,-500.0,0.000375,5]
[394738712,1763922642551,-572.9799161,0.000375,5]
[394738713,1763922642560,-173.57380504,0.000375,5]
[394738714,1763922642585,-16.53008417,0.000375,5]
[394738715,1763922642595,-415.16633773,0.000375,5]
[394738716,1763922642604,-4612.16888228,0.00037507,3]
[394738717,1763922642614,-6553.97854478,0.00037514,3]
[394738718,1763922642624,-477.72,0.00037517,120]
[394738719,1763922642634,-431.822735,0.00037534,7]
[394738720,1763922642646,-2568.177265,0.00037534,7]
[394738721,1763922642656,-163.37,0.000376,30]
[394738722,1763922642667,-197.31768614,0.00037671,2]
[394738723,1763922642690,-102.68231386,0.00037671,2]
[394738724,1763922642699,-1101.58,0.00037671,2]
[394738725,1763922642708,-217.83804072,0.00037719,2]
[394738726,1763922642720,-1102.08,0.00037726,2]
[394738727,1763922642731,-551.04,0.00037726,2]
[394738728,1763922642741,-551.04,0.00037726,2]
[394738729,1763922642750,-1147.44,0.00037726,2]
[394738730,1763922642760,-150.0,0.00037806,2]
[394738731,1763922642769,-150.55,0.0003782,2]
[394738732,1763922642779,-160.55159976,0.0003783,15]
[394738733,1763922642789,-300.0,0.00037884,2]
[394738734,1763922642799,-217.83804072,0.00037899,2]
[394738736,1763922642808,-4419.89394565,0.000379,2]
[394738737,1763922642817,-4612.16888228,0.00037944,3]
[394738739,1763922642826,-479.01,0.00037945,2]
[394738740,1763922642835,-6553.97854478,0.00037954,3]
[394738741,1763922642845,-2847.67185983,0.00037954,3]
[394738743,1763922643811,-535.31067534,0.00037377,2]
[394738744,1763922643822,-73.68932466,0.00037377,2]
[394738745,1763922643832,-1764.49702245,0.00037954,3]
[394738746,1763922643843,-737.25224078,0.0003799,3]
[394738747,1763922643855,-11019.80863721,0.0003799,3]
[394738748,1763922643866,-2987.2,0.0003799,3]
[394738749,1763922643877,-8316.58353341,0.0003799,3]
[394738750,1763922643887,-151.0,0.0003799,30]
[394738751,1763922643898,-4612.16888228,0.0003799,3]
[394738752,1763922643908,-50000.0,0.00038,38]
[394738753,1763922643917,-158.95714073,0.00038,120]
[394738754,1763922643926,-300.0,0.00038041,2]
[394738755,1763922643936,-937.59709008,0.00038048,5]
[394738756,1763922643945,-500.0,0.00038048,5]
[394738757,1763922643955,-502.06775106,0.00038048,5]
[394738758,1763922643965,-500.0,0.00038048,5]
[394738759,1763922643974,-1000.0,0.00038048,5]
[394738760,1763922643984,-500.0,0.00038048,5]
[394738761,1763922643995,-1000.0,0.00038048,5]
[394738762,1763922644006,-1000.0,0.00038048,5]
[394738763,1763922644018,-500.0,0.00038048,5]
[394738764,1763922644030,-500.0,0.00038048,5]
[394738765,1763922644043,-292.78050892,0.0003808,8]
[394738766,1763922644054,-500.0,0.0003808,7]
[394738767,1763922644067,-500.0,0.0003808,8]
[394738768,1763922644078,-500.0,0.0003808,8]
[394738769,1763922644090,-500.0,0.0003808,2]
[394738770,1763922644101,-500.0,0.0003808,2]
[394738771,1763922644113,-858.86,0.00038081,5]
[394738772,1763922644124,-1000.0,0.00038082,7]
[394738773,1763922644134,-500.0,0.00038082,7]
[394738774,1763922644145,-150.55,0.00038127,2]
[394738775,1763922644161,-479.01,0.00038137,2]
[394738776,1763922644172,-479.01,0.00038137,2]
[394738777,1763922644182,-479.01,0.00038137,2]
[394738778,1763922644192,-479.01,0.00038137,2]
[394738779,1763922644203,-486.39,0.00038137,2]
[394738780,1763922644218,-4612.16888228,0.00038163,3]
[394738781,1763922644227,-196.54805429,0.00038174,2]
[394738782,1763922644237,-353.43271123,0.00038174,2]
[394738783,1763922644248,-200.0,0.00038185,5]
[394738784,1763922644258,-553.03389997,0.00038213,2]
[394738785,1763922644269,-9932.50325129,0.00038233,2]
[394738786,1763922644279,-7006.98099901,0.000383,2]
[394738787,1763922644290,-441.34612025,0.00038311,2]
[394738788,1763922644300,-9224.33776456,0.00038346,3]
[394738789,1763922644310,-151.0,0.00038346,31]
[394738790,1763922644320,-151.0,0.00038346,31]
[394738791,1763922644331,-198.759861,0.00038346,30]
[394738792,1763922644340,-198.759861,0.00038346,30]
[394738793,1763922644350,-198.759861,0.00038346,30]
[394738794,1763922644360,-198.759861,0.00038346,30]
[394738795,1763922644371,-151.0,0.00038346,31]
[394738796,1763922644382,-217.83804072,0.00038353,2]
[394738797,1763922644392,-500.0,0.00038355,7]
[394738798,1763922644405,-296.9,0.00038355,7]
[394738799,1763922644416,-500.0,0.00038355,8]
[394738800,1763922644426,-150.0,0.00038355,20]
[394738801,1763922644437,-500.0,0.00038355,2]
[394738802,1763922644447,-500.0,0.00038355,2]
[394738803,1763922644457,-500.0,0.00038355,2]
[394738804,1763922644466,-500.0,0.00038355,2]
[394738805,1763922644475,-500.0,0.00038355,2]
[394738806,1763922644485,-500.0,0.00038355,2]
[394738807,1763922644495,-151.0,0.00038355,31]
[394738808,1763922644504,-500.0,0.00038356,14]
[394738809,1763922644515,-500.0,0.00038356,14]
[394738810,1763922644525,-500.0,0.00038356,14]
[394738811,1763922644535,-500.0,0.00038356,14]
[394738812,1763922644545,-500.0,0.00038356,14]
[394738813,1763922644555,-500.0,0.00038356,14]
[394738814,1763922644564,-500.0,0.00038356,14]
[394738815,1763922644574,-500.0,0.00038356,14]
[394738816,1763922644584,-500.0,0.00038356,8]
[394738817,1763922644594,-500.0,0.00038356,8]
[394738818,1763922644604,-500.0,0.00038356,8]
[394738819,1763922644613,-500.0,0.00038356,8]
[394738820,1763922644622,-500.0,0.00038356,8]
[394738821,1763922644632,-500.0,0.00038356,8]
[394738822,1763922644642,-500.0,0.00038356,8]
[394738823,1763922644651,-505.03243118,0.00038356,8]
[394738824,1763922644660,-500.0,0.00038356,8]
[394738825,1763922644670,-500.0,0.00038356,8]
[394738826,1763922644680,-500.0,0.00038356,8]
[394738827,1763922644690,-500.0,0.00038356,8]
[394738828,1763922644699,-506.62920117,0.00038356,8]
[394738829,1763922644708,-501.49154631,0.00038356,8]
[394738830,1763922644717,-500.0,0.00038356,8]
[394738831,1763922644727,-500.0,0.00038356,8]
[394738832,1763922644737,-500.0,0.00038356,8]
[394738833,1763922644746,-500.0,0.00038356,8]
[394738834,1763922644755,-500.0,0.00038356,8]
[394738835,1763922644766,-500.0,0.00038356,8]
[394738836,1763922644775,-500.0,0.00038356,8]
[394738837,1763922644785,-500.0,0.00038356,8]
[394738838,1763922644794,-500.0,0.00038356,8]
[394738839,1763922644803,-500.0,0.00038356,8]
[394738840,1763922644813,-500.0,0.00038356,8]
[394738841,1763922644823,-500.0,0.00038356,8]
[394738842,1763922644832,-500.0,0.00038356,2]
[394738843,1763922644842,-555.02843165,0.00038356,8]
[394738844,1763922644852,-3000.0,0.00038356,7]
[394738845,1763922644864,-500.0,0.00038356,8]
[394738846,1763922644876,-500.0,0.00038356,2]
[394738847,1763922644889,-500.0,0.00038356,8]
[394738848,1763922644902,-404.88567991,0.00038356,8]
[394738849,1763922644913,-320.98762884,0.00038356,8]
[394738850,1763922644923,-500.0,0.00038356,8]
[394738851,1763922644933,-500.0,0.00038356,8]
[394738852,1763922644944,-500.0,0.00038356,8]
[394738853,1763922644956,-502.92456939,0.00038356,8]
[394738854,1763922644968,-500.0,0.00038356,8]
[394738855,1763922644979,-519.40660005,0.00038356,8]
[394738856,1763922644991,-500.0,0.00038356,8]
[394738857,1763922645003,-500.0,0.00038356,8]
[394738858,1763922645015,-500.0,0.00038356,8]
[394738859,1763922645027,-500.0,0.00038356,8]
[394738860,1763922645037,-500.0,0.00038356,8]
[394738861,1763922645049,-500.0,0.00038356,8]
[394738862,1763922645060,-500.0,0.00038356,8]
[394738863,1763922645070,-500.0,0.00038356,8]
[394738864,1763922645081,-500.0,0.00038356,8]
[394738865,1763922645091,-500.0,0.00038356,8]
[394738866,1763922645104,-500.36,0.00038356,8]
[394738867,1763922645116,-500.0,0.00038356,8]
[394738868,1763922645127,-500.0,0.00038356,8]
[394738869,1763922645140,-500.0,0.00038356,8]
[394738870,1763922645152,-500.0,0.00038356,8]
[394738871,1763922645164,-500.0,0.00038356,8]
[394738872,1763922645177,-500.0,0.00038356,8]
[394738873,1763922645189,-500.0,0.00038356,8]
[394738874,1763922645201,-500.0,0.00038356,8]
[394738875,1763922645216,-696.56,0.00038356,8]
[394738876,1763922645227,-500.0,0.00038356,8]
[394738877,1763922645240,-500.0,0.00038356,8]
[394738878,1763922645253,-500.0,0.00038356,8]
[394738879,1763922645265,-500.0,0.00038356,8]
[394738880,1763922645278,-768.3,0.00038356,8]
[394738881,1763922645291,-592.5,0.00038356,8]
[394738882,1763922645303,-500.0,0.00038356,8]
[394738883,1763922645315,-500.0,0.00038356,8]
[394738884,1763922645327,-589.50350569,0.00038356,8]
[394738885,1763922645339,-500.0,0.00038356,8]
[394738886,1763922645350,-500.0,0.00038356,8]
[394738887,1763922645362,-513.91,0.00038356,8]
[394738888,1763922645374,-500.0,0.00038356,8]
[394738889,1763922645386,-500.0,0.00038356,8]
[394738890,1763922645399,-500.0,0.00038356,8]
[394738891,1763922645411,-500.0,0.00038356,8]
[394738892,1763922645422,-500.0,0.00038356,8]
[394738893,1763922645433,-500.0,0.00038356,8]
[394738894,1763922645443,-500.0,0.00038356,8]
[394738895,1763922645455,-500.0,0.00038356,8]
[394738896,1763922645466,-639.39,0.00038356,8]
[394738897,1763922645476,-500.0,0.00038356,8]
[394738898,1763922645487,-500.0,0.00038356,8]
[394738899,1763922645498,-500.0,0.00038356,8]
[394738901,1763922645507,-500.0,0.00038356,8]
[394738903,1763922645518,-500.0,0.00038356,8]
[394738905,1763922645531,-225.41408034,0.00038356,8]
[394738907,1763922645544,-500.0,0.00038356,8]
[394738908,1763922645554,-500.0,0.00038356,8]
[394738909,1763922645564,-500.0,0.00038356,8]
[394738910,1763922645574,-500.0,0.00038356,8]
[394738911,1763922645584,-500.0,0.00038356,8]
[394738912,1763922645595,-500.0,0.00038356,8]
[394738914,1763922645607,-500.0,0.00038356,8]
[394738916,1763922645619,-575.28,0.00038356,8]
[394738917,1763922645631,-500.0,0.00038356,8]
[394738918,1763922645641,-500.0,0.00038356,8]
[394738919,1763922645659,-500.0,0.00038356,8]
[394738920,1763922645669,-500.0,0.00038356,8]
[394738921,1763922645680,-500.0,0.00038356,8]
[394738922,1763922645692,-500.0,0.00038356,8]
[394738923,1763922645703,-500.0,0.00038356,8]
[394738924,1763922645714,-500.0,0.00038356,8]
[394738925,1763922645725,-500.0,0.00038356,8]
[394738926,1763922645736,-500.0,0.00038356,8]
[394738927,1763922645747,-500.0,0.00038356,8]
[394738928,1763922645757,-500.0,0.00038356,8]
[394738930,1763922645767,-500.0,0.00038356,8]
[394738931,1763922645778,-500.0,0.00038356,8]
[394738933,1763922645794,-566.34,0.00038356,8]
[394738934,1763922645805,-500.0,0.00038356,8]
[394738935,1763922645815,-500.0,0.00038356,8]
[394738936,1763922645826,-968.13,0.00038356,8]
[394738937,1763922645836,-500.0,0.00038356,8]
[394738938,1763922645847,-500.0,0.00038356,8]
[394738939,1763922645858,-500.0,0.00038356,8]
[394738940,1763922645869,-519.82708717,0.00038356,8]
[394738941,1763922645880,-500.0,0.00038356,8]
[394738942,1763922645891,-500.0,0.00038356,8]
[394738943,1763922645901,-751.39,0.00038356,8]
[394738944,1763922645913,-500.0,0.00038356,8]
[394738945,1763922645925,-987.75,0.00038356,8]
[394738946,1763922645936,-500.0,0.00038356,8]
[394738947,1763922645947,-500.0,0.00038356,8]
[394738948,1763922645958,-500.0,0.00038356,8]
[394738949,1763922645969,-500.0,0.00038356,8]
[394738950,1763922645980,-874.64,0.00038356,8]
[394738951,1763922645993,-500.0,0.00038356,8]
[394738952,1763922646003,-500.0,0.00038356,8]
[394738953,1763922646018,-638.97,0.00038356,8]
[394738954,1763922646028,-500.0,0.00038356,8]
[394738955,1763922646040,-500.0,0.00038356,8]
[394738956,1763922646052,-500.0,0.00038356,8]
[394738957,1763922646067,-500.0,0.00038356,8]
[394738958,1763922646079,-500.0,0.00038356,8]
[394738959,1763922646090,-500.0,0.00038356,8]
[394738960,1763922646101,-500.0,0.00038356,8]
[394738961,1763922646114,-500.0,0.00038356,8]
[394738962,1763922646127,-500.0,0.00038356,8]
[394738963,1763922646139,-555.42,0.00038356,8]
[394738964,1763922646154,-590.09,0.00038356,8]
[394738965,1763922646167,-500.0,0.00038356,8]
[394738966,1763922646180,-500.0,0.00038356,8]
[394738967,1763922646192,-500.0,0.00038356,8]
[394738968,1763922646204,-500.0,0.00038356,8]
[394738969,1763922646221,-500.0,0.00038356,8]
[394738970,1763922646233,-1054.69,0.00038356,8]
[394738971,1763922646246,-500.0,0.00038356,8]
[394738972,1763922646258,-500.0,0.00038356,8]
[394738973,1763922646270,-500.0,0.00038356,8]
[394738974,1763922646281,-500.0,0.00038356,8]
[394738975,1763922646295,-500.0,0.00038356,8]
[394738976,1763922646306,-500.0,0.00038356,8]
[394738977,1763922646318,-500.0,0.00038356,8]
[394738978,1763922646329,-500.0,0.00038356,8]
[394738979,1763922646345,-500.0,0.00038356,8]
[394738980,1763922646356,-500.0,0.00038356,8]
[394738982,1763922646367,-500.0,0.00038356,8]
[394738985,1763922646379,-500.0,0.00038356,8]
[394738987,1763922646390,-500.0,0.00038356,8]
[394738989,1763922646405,-500.0,0.00038356,8]
[394738991,1763922646420,-500.0,0.00038356,8]
[394738993,1763922646432,-500.0,0.00038356,8]
[394738995,1763922646443,-500.0,0.00038356,8]
[394738998,1763922646455,-537.16,0.00038356,8]
[394739000,1763922646466,-500.0,0.00038356,8]
[394739002,1763922646478,-750.63,0.00038356,8]
[394739004,1763922646489,-500.0,0.00038356,8]
[394739006,1763922646499,-500.0,0.00038356,8]
[394739008,1763922646509,-500.0,0.00038356,8]
[394739010,1763922646520,-500.0,0.00038356,8]
[394739013,1763922646530,-500.0,0.00038356,8]
[394739016,1763922646540,-500.0,0.00038356,8]
[394739019,1763922646550,-500.0,0.00038356,8]
[394739022,1763922646561,-500.0,0.00038356,8]
[394739025,1763922646571,-500.0,0.00038356,8]
[394739028,1763922646581,-500.0,0.00038356,8]
[394739031,1763922646591,-500.0,0.00038356,8]
[394739033,1763922646601,-500.0,0.00038356,8]
[394739035,1763922646612,-500.0,0.00038356,8]
[394739037,1763922646622,-500.0,0.00038356,8]
[394739039,1763922646632,-500.0,0.00038356,8]
[394739041,1763922646642,-500.0,0.00038356,8]
[394739043,1763922646652,-500.0,0.00038356,8]
[394739045,1763922646663,-510.10667366,0.00038356,8]
[394739048,1763922646673,-700.0,0.00038356,120]
[394739050,1763922646684,-500.0,0.00038356,8]
[394739052,1763922646695,-642.61,0.00038356,8]
[394739054,1763922646705,-500.0,0.00038356,8]
[394739056,1763922646714,-500.0,0.00038356,8]
[394739058,1763922646725,-946.15,0.00038356,8]
[394739060,1763922646734,-500.0,0.00038356,8]
[394739062,1763922646744,-500.0,0.00038356,8]
[394739064,1763922646754,-500.0,0.00038356,8]
[394739066,1763922646764,-500.0,0.00038356,8]
[394739069,1763922646776,-500.0,0.00038356,8]
[394739071,1763922646790,-646.49,0.00038356,8]
[394739073,1763922646800,-844.53,0.00038356,8]
[394739075,1763922646811,-511.82,0.00038356,8]
[394739077,1763922646821,-500.0,0.00038356,8]
[394739079,1763922646831,-500.0,0.00038356,8]
[394739081,1763922646841,-184.96093194,0.00038356,8]
[394739084,1763922646853,-500.0,0.00038356,8]
[394739086,1763922646863,-500.0,0.00038356,8]
[394739088,1763922646873,-500.0,0.00038356,8]
[394739090,1763922646882,-500.0,0.00038356,8]
[394739092,1763922646893,-500.0,0.00038356,8]
[394739094,1763922646905,-568.8,0.00038356,8]
[394739096,1763922646915,-500.0,0.00038356,8]
[394739098,1763922646925,-500.0,0.00038356,8]
[394739101,1763922646936,-500.0,0.00038356,8]
[394739102,1763922646947,-1000.0,0.00038356,8]
[394739104,1763922646956,-500.0,0.00038356,8]
[394739106,1763922646967,-500.0,0.00038356,8]
[394739108,1763922646976,-500.0,0.00038356,8]
[394739110,1763922646987,-500.0,0.00038356,8]
[394739112,1763922646997,-516.38,0.00038356,8]
[394739114,1763922647007,-554.51,0.00038356,8]
[394739116,1763922647019,-500.0,0.00038356,8]
[394739119,1763922647029,-981.95,0.00038356,8]
[394739121,1763922647039,-500.0,0.00038356,8]
[394739123,1763922647049,-500.0,0.00038356,8]
[394739125,1763922647059,-500.0,0.00038356,8]
[394739127,1763922647070,-500.0,0.00038356,8]
[394739129,1763922647080,-500.0,0.00038356,8]
[394739131,1763922647091,-1225.07,0.00038356,8]
[394739133,1763922647101,-526.68,0.00038356,8]
[394739135,1763922647112,-676.45,0.00038356,8]
[394739137,1763922647123,-500.0,0.00038356,8]
[394739139,1763922647133,-500.0,0.00038356,8]
[394739142,1763922647144,-500.0,0.00038356,8]
[394739144,1763922647157,-653.68,0.00038356,8]
[394739146,1763922647169,-500.0,0.00038356,8]
[394739148,1763922647181,-561.21,0.00038356,8]
[394739150,1763922647193,-153.151611,0.00038356,31]
[394739152,1763922647205,-500.0,0.00038356,8]
[394739155,1763922647219,-500.0,0.00038356,8]
[394739157,1763922647229,-151.0,0.00038356,30]
[394739159,1763922647240,-500.0,0.00038356,8]
[394739161,1763922647252,-500.0,0.00038356,8]
[394739163,1763922647263,-612.73,0.00038356,8]
[394739165,1763922647274,-500.0,0.00038356,8]
[394739167,1763922647285,-151.0,0.00038356,30]
[394739169,1763922647296,-500.0,0.00038356,8]
[394739171,1763922647307,-615.66,0.00038356,8]
[394739173,1763922647318,-500.0,0.00038356,8]
[394739175,1763922647328,-1000.0,0.00038356,120]
[394739177,1763922647338,-151.0,0.00038356,30]
[394739179,1763922647349,-500.0,0.00038356,8]
[394739182,1763922647361,-500.0,0.00038356,8]
[394739184,1763922647371,-500.0,0.00038356,8]
[394739186,1763922647382,-511.72190004,0.00038356,8]
[394739188,1763922647393,-578.55,0.00038356,8]
[394739190,1763922647406,-597.62,0.00038356,8]
[394739192,1763922647416,-500.0,0.00038356,8]
[394739194,1763922647427,-500.0,0.00038356,8]
[394739196,1763922647438,-500.0,0.00038356,8]
[394739198,1763922647448,-500.0,0.00038356,8]
[394739200,1763922647463,-500.0,0.00038356,8]
[394739201,1763922647475,-500.0,0.00038356,8]
[394739202,1763922647487,-500.0,0.00038356,8]
[394739203,1763922647498,-500.0,0.00038356,8]
[394739204,1763922647509,-500.0,0.00038356,8]
[394739205,1763922647519,-750.11,0.00038356,8]
[394739207,1763922647529,-500.0,0.00038356,8]
[394739209,1763922647539,-500.0,0.00038356,8]
[394739210,1763922647549,-500.0,0.00038356,8]
[394739211,1763922647559,-500.0,0.00038356,8]
[394739212,1763922647569,-500.0,0.00038356,8]
[394739213,1763922647579,-585.64,0.00038356,8]
[394739214,1763922647589,-500.0,0.00038356,8]
[394739215,1763922647599,-500.0,0.00038356,8]
[394739216,1763922647608,-500.0,0.00038356,8]
[394739217,1763922647619,-500.0,0.00038356,8]
[394739218,1763922647629,-500.0,0.00038356,8]
[394739219,1763922647639,-234.72586878,0.00038356,8]
[394739220,1763922647649,-500.0,0.00038356,8]
[394739221,1763922647661,-500.0,0.00038356,8]
[394739222,1763922647672,-681.35,0.00038356,8]
[394739223,1763922647682,-500.0,0.00038356,8]
[394739224,1763922647692,-500.0,0.00038356,8]
[394739225,1763922647702,-703.85,0.00038356,8]
[394739226,1763922647712,-500.0,0.00038356,8]
[394739227,1763922647722,-500.0,0.00038356,8]
[394739228,1763922647733,-500.0,0.00038356,8]
[394739229,1763922647743,-535.27666157,0.00038356,8]
[394739230,1763922647753,-500.0,0.00038356,8]
[394739231,1763922647763,-500.0,0.00038356,8]
[394739232,1763922647773,-500.0,0.00038356,8]
[394739233,1763922647782,-500.0,0.00038356,8]
[394739234,1763922647792,-500.0,0.00038356,8]
[394739235,1763922647802,-500.0,0.00038356,8]
[394739236,1763922647813,-500.0,0.00038356,8]
[394739237,1763922647823,-500.0,0.00038356,8]
[394739238,1763922647833,-765.51,0.00038356,8]
[394739239,1763922647843,-500.0,0.00038356,8]
[394739240,1763922647853,-500.0,0.00038356,8]
[394739241,1763922647864,-611.71,0.00038356,8]
[394739242,1763922647875,-721.89,0.00038356,8]
[394739243,1763922647885,-500.0,0.00038356,8]
[394739244,1763922647895,-500.0,0.00038356,8]
[394739245,1763922647906,-680.17,0.00038356,8]
[394739246,1763922647915,-500.0,0.00038356,8]
[394739247,1763922647926,-1044.93,0.00038356,8]
[394739248,1763922647936,-500.0,0.00038356,8]